bitfinex-derivatives/quotes_SOLF0:USTF0_20241105
["timestamp","ask_amount","ask_price","bid_price","bid_amount"]
[1730791314148,7.61700227,161.59,161.57,3.0961]
[1730791314545,7.61700227,161.59,161.55,2.76]
[1730791314950,7.61700227,161.59,161.56,3.0964]
[1730791315257,7.61700227,161.59,161.55,2.76]
[1730791315461,7.61700227,161.59,161.56,3.0964]
[1730791315649,7.61700227,161.59,161.55,2.76]
[1730791316250,7.61700227,161.59,161.56,3.0964]
[1730791316652,7.61700227,161.58,161.53,1.3805]
[1730791316853,7.61700227,161.58,161.54,2.07809802]
[1730791317047,7.61700227,161.58,161.55,2.07809802]
[1730791317256,7.61700227,161.58,161.53,4.1405]
[1730791317558,7.61700227,161.58,161.54,2.07806539]
[1730791317754,7.61700227,161.58,161.55,2.07806539]
[1730791317954,7.61700227,161.58,161.53,1.3805]
[1730791318259,10.71320227,161.58,161.54,5.17418817]
[1730791318562,10.71320227,161.58,161.55,2.07738817]
[1730791318756,10.71320227,161.58,161.54,3.0968]
[1730791318953,10.71320227,161.58,161.55,2.07750267]
[1730791319156,10.71320227,161.58,161.54,3.0968]
[1730791319358,10.71320227,161.58,161.55,2.07770287]
[1730791319657,7.61700227,161.56,161.51,7.61700227]
[1730791319859,7.61700227,161.55,161.52,2.07766955]
[1730791320055,7.61700227,161.55,161.53,2.07766955]
[1730791320354,7.61700227,161.55,161.52,3.0972]
[1730791320759,7.61700227,161.55,161.53,2.07783537]
[1730791320961,7.61700227,161.55,161.54,2.07783537]
[1730791321758,10.71370227,161.55,161.54,2.07783537]
[1730791322757,10.71370227,161.55,161.51,7.61700227]
[1730791322962,10.71370227,161.55,161.52,2.07799083]
[1730791323159,10.71370227,161.55,161.53,2.07799083]
[1730791323359,10.71370227,161.55,161.54,2.07799083]
[1730791326380,10.71370227,161.55,161.52,3.0972]
[1730791326678,3.0969,161.54,161.53,2.07810968]
[1730791327274,10.71370227,161.55,161.53,2.07810968]
[1730791327480,10.71370227,161.55,161.54,2.07810968]
[1730791328175,3.0964,161.57,161.54,2.07810968]
[1730791328382,3.0964,161.57,161.5,10.37700227]
[1730791328579,7.61700227,161.55,161.51,2.07754944]
[1730791328779,7.61700227,161.55,161.54,3.0969]
[1730791329084,7.61700227,161.55,161.54,5.17444944]
[1730791329870,7.61700227,161.55,161.54,3.0969]
[1730791330079,7.61700227,161.55,161.54,5.17442543]
[1730791333386,7.61700227,161.55,161.54,2.07752543]
[1730791333580,7.61700227,161.55,161.53,3.097]
[1730791335086,7.61700227,161.55,161.54,2.07773365]
[1730791335278,10.71370227,161.55,161.54,2.07773365]
[1730791335975,10.37700227,161.55,161.45,4.1111]
[1730791336180,10.37700227,161.55,161.44,8.92790227]
[1730791336181,7.61700227,161.47,161.44,1.3109]
[1730791336380,7.61700227,161.47,161.45,3.0985]
[1730791336582,7.61700227,161.47,161.44,1.3109]
[1730791336881,2.76,161.51,161.44,8.92790227]
[1730791337087,7.61700227,161.49,161.45,3.0984]
[1730791337674,10.71480227,161.49,161.45,3.0984]
[1730791338487,7.61700227,161.49,161.46,3.0984]
[1730791338785,7.61700227,161.49,161.44,1.3109]
[1730791340389,10.71480227,161.49,161.45,3.0985]
[1730791340585,7.61700227,161.5,161.44,1.3109]
[1730791340886,7.61700227,161.5,161.47,3.0982]
[1730791341588,5.8571,161.53,161.46,7.61700227]
[1730791341776,7.61700227,161.52,161.46,7.61700227]
[1730791341974,3.0971,161.53,161.46,7.61700227]
[1730791341975,2.76,161.54,161.46,10.37700227]
[1730791342181,7.61700227,161.52,161.46,10.37700227]
[1730791342587,7.61700227,161.52,161.48,3.0979]
[1730791342782,7.61700227,161.52,161.46,10.37700227]
[1730791344287,3.0973,161.52,161.48,3.0979]
[1730791344482,7.61700227,161.51,161.46,10.37700227]
[1730791344686,7.61700227,161.49,161.46,2.76]
[1730791344984,7.61700227,161.49,161.44,8.92790227]
[1730791345387,7.61700227,161.49,161.46,3.0983]
[1730791347488,7.61700227,161.48,161.44,1.3109]
[1730791347688,7.61700227,161.47,161.42,10.37700227]
[1730791347896,7.61700227,161.47,161.43,2.0680062]
[1730791348092,7.61700227,161.46,161.44,2.0680062]
[1730791348385,7.61700227,161.46,161.42,2.76]
[1730791348582,7.61700227,161.46,161.43,2.0678353]
[1730791348787,7.61700227,161.46,161.44,2.0678353]
[1730791349093,7.61700227,161.46,161.43,3.0988]
[1730791349388,7.61700227,161.46,161.39,2.7158]
[1730791349596,7.61700227,161.44,161.42,3.099]
[1730791350491,7.61700227,161.44,161.43,3.099]
[1730791352794,7.61700227,161.46,161.41,7.61700227]
[1730791352994,7.61700227,161.46,161.44,3.0987]
[1730791357398,7.61700227,161.45,161.44,3.0987]
[1730791360096,7.61700227,161.46,161.45,3.0985]
[1730791360491,7.61700227,161.46,161.41,7.61700227]
[1730791361097,2.76,161.5,161.43,7.61700227]
[1730791361395,7.61700227,161.47,161.45,3.0985]
[1730791361789,7.61700227,161.47,161.4,4.1045]
[1730791361993,7.61700227,161.47,161.43,7.61700227]
[1730791362597,7.61700227,161.47,161.45,3.0984]
[1730791363501,7.61700227,161.46,161.42,7.61700227]
[1730791363710,7.61700227,161.45,161.43,3.0988]
[1730791367899,2.76,161.5,161.42,7.61700227]
[1730791368109,7.61700227,161.47,161.42,7.61700227]
[1730791368302,7.61700227,161.47,161.43,7.61700227]
[1730791368901,7.61700227,161.47,161.44,3.0987]
[1730791369206,7.61700227,161.47,161.43,7.61700227]
[1730791370310,7.61700227,161.47,161.45,3.0985]
[1730791371204,7.61700227,161.47,161.42,7.61700227]
[1730791372300,7.61700227,161.47,161.45,3.0985]
[1730791372716,3.0978,161.49,161.45,3.0985]
[1730791372914,7.61700227,161.47,161.45,3.0985]
[1730791375715,3.0976,161.51,161.47,3.0981]
[1730791375912,7.61700227,161.48,161.47,3.0981]
[1730791376611,3.0986,161.45,161.37,7.61700227]
[1730791376817,7.61700227,161.43,161.38,7.61700227]
[1730791377620,7.61700227,161.43,161.42,3.099]
[1730791378011,3.0983,161.47,161.42,3.099]
[1730791378214,7.61700227,161.44,161.42,3.099]
[1730791380613,3.0983,161.47,161.42,3.099]
[1730791380817,3.0982,161.48,161.43,3.0989]
[1730791381119,7.61700227,161.44,161.43,3.0989]
[1730791385731,1.3554,161.5,161.42,7.61700227]
[1730791385922,7.61700227,161.46,161.4,2.662]
[1730791386122,7.61700227,161.46,161.41,7.61700227]
[1730791386529,7.61700227,161.46,161.44,3.0987]
[1730791387119,7.61700227,161.45,161.44,3.0987]
[1730791388427,7.61700227,161.45,161.39,2.76]
[1730791388628,7.61700227,161.42,161.41,3.0992]
[1730791392926,7.61700227,161.42,161.39,3.0995]
[1730791393236,7.61700227,161.41,161.39,3.0995]
[1730791394031,7.61700227,161.41,161.38,2.76]
[1730791394228,7.61700227,161.41,161.4,3.0995]
[1730791399335,7.61700227,161.42,161.4,3.0995]
[1730791400029,7.61700227,161.42,161.38,2.76]
[1730791400232,7.61700227,161.43,161.42,3.0991]
[1730791401436,7.61700227,161.43,161.41,3.0993]
[1730791402628,7.61700227,161.42,161.41,3.0993]
[1730791409846,7.61700227,161.42,161.39,3.0996]
[1730791410047,7.61700227,161.4,161.39,3.0996]
[1730791419139,2.76,161.46,161.37,7.61700227]
[1730791419341,7.61700227,161.43,161.42,3.0991]
[1730791421341,7.61700227,161.43,161.38,1.41]
[1730791421548,7.61700227,161.39,161.35,2.7358]
[1730791421839,7.61700227,161.37,161.35,2.76]
[1730791422044,7.61700227,161.37,161.33,1.41]
[1730791422045,7.61700227,161.37,161.36,3.1003]
[1730791423048,3.0995,161.41,161.37,3.1]
[1730791423254,7.61700227,161.38,161.37,3.1]
[1730791424547,1.2878,161.45,161.39,3.0997]
[1730791424757,7.61700227,161.43,161.38,10.37700227]
[1730791425242,7.61700227,161.43,161.41,3.0992]
[1730791425448,7.61700227,161.42,161.38,2.76]
[1730791425651,7.61700227,161.39,161.38,2.76]
[1730791425852,7.61700227,161.41,161.38,2.76]
[1730791426549,7.61700227,161.41,161.4,3.0995]
[1730791430049,7.61700227,161.41,161.35,3.1004]
[1730791430258,7.61700227,161.4,161.37,2.76]
[1730791430447,7.61700227,161.39,161.37,2.76]
[1730791430654,7.61700227,161.39,161.38,3.0999]
[1730791431356,7.61700227,161.4,161.38,3.0999]
[1730791431854,7.61700227,161.41,161.4,3.0994]
[1730791433757,7.61700227,161.41,161.37,2.76]
[1730791434060,7.61700227,161.39,161.38,3.0999]
[1730791434252,7.61700227,161.39,161.37,2.76]
[1730791434658,7.61700227,161.38,161.37,3.1]
[1730791436860,7.61700227,161.38,161.33,1.41]
[1730791437066,7.61700227,161.36,161.33,1.41]
[1730791437268,7.61700227,161.34,161.32,2.76]
[1730791437559,7.61700227,161.34,161.33,3.1009]
[1730791440259,2.76,161.39,161.35,3.1003]
[1730791440460,7.61700227,161.36,161.35,3.1003]
[1730791440765,7.61700227,161.36,161.3,11.76580227]
[1730791440951,7.61700227,161.34,161.3,11.76580227]
[1730791441563,7.61700227,161.34,161.33,3.1009]
[1730791447567,7.61700227,161.34,161.3,11.76580227]
[1730791449369,7.61700227,161.34,161.33,3.1009]
[1730791450371,3.1,161.38,161.34,3.1007]
[1730791450572,7.61700227,161.35,161.34,3.1007]
[1730791452773,7.61700227,161.36,161.35,3.1003]
[1730791452971,7.61700227,161.38,161.34,2.76]
[1730791453969,4.0503,161.42,161.34,2.76]
[1730791454170,7.61700227,161.37,161.34,2.76]
[1730791455272,7.61700227,161.37,161.36,3.1003]
[1730791457073,7.61700227,161.37,161.34,2.76]
[1730791457276,7.61700227,161.36,161.35,3.1005]
[1730791472279,7.61700227,161.36,161.34,3.1007]
[1730791474080,7.61700227,161.35,161.33,3.1009]
[1730791477287,7.61700227,161.34,161.33,3.1009]
[1730791485077,7.61700227,161.34,161.32,3.101]
[1730791486487,7.61700227,161.34,161.33,3.1009]
[1730791490292,7.61700227,161.34,161.28,2.76]
[1730791490493,2.76,161.38,161.28,2.76]
[1730791490494,7.61700227,161.31,161.28,2.76]
[1730791490692,2.68,161.37,161.29,3.1017]
[1730791490894,7.61700227,161.3,161.29,3.1017]
[1730791493596,3.1006,161.35,161.3,3.1014]
[1730791493792,7.61700227,161.31,161.3,3.1014]
[1730791497498,3.1006,161.35,161.3,3.1014]
[1730791497691,7.61700227,161.31,161.3,3.1014]
[1730791497896,3.9988,161.37,161.26,2.76]
[1730791498194,7.61700227,161.31,161.26,2.76]
[1730791498395,7.61700227,161.3,161.26,2.76]
[1730791499394,7.61700227,161.3,161.29,3.1017]
[1730791500190,3.1005,161.35,161.29,3.1017]
[1730791500395,7.61700227,161.3,161.26,2.76]
[1730791501400,7.61700227,161.3,161.29,3.1017]
[1730791502496,3.9988,161.37,161.27,7.61700227]
[1730791502697,3.9988,161.37,161.28,7.61700227]
[1730791502698,7.61700227,161.33,161.28,7.61700227]
[1730791502902,1.321,161.42,161.29,7.61700227]
[1730791503106,7.61700227,161.34,161.3,2.76]
[1730791503402,7.61700227,161.34,161.33,3.1007]
[1730791503700,4.0872,161.42,161.31,7.61700227]
[1730791503900,7.61700227,161.36,161.34,3.1006]
[1730791504092,7.61700227,161.36,161.31,7.61700227]
[1730791504295,7.61700227,161.35,161.31,7.61700227]
[1730791505398,7.61700227,161.35,161.34,3.1007]
[1730791507199,7.61700227,161.35,161.3,2.76]
[1730791507505,2.76,161.4,161.3,2.76]
[1730791507898,7.61700227,161.35,161.34,3.1006]
[1730791508401,5.8597,161.4,161.35,3.1004]
[1730791508601,7.61700227,161.36,161.35,3.1004]
[1730791511506,7.61700227,161.36,161.34,3.1006]
[1730791511711,5.8597,161.4,161.34,3.1006]
[1730791511910,7.61700227,161.35,161.34,3.1006]
[1730791513314,7.61700227,161.35,161.3,2.76]
[1730791514302,7.61700227,161.35,161.34,3.1007]
[1730791514507,7.61700227,161.35,161.29,2.76]
[1730791514711,7.61700227,161.32,161.29,2.76]
[1730791515310,7.61700227,161.3,161.27,4.0358]
[1730791515513,7.61700227,161.28,161.27,2.7028]
[1730791515711,7.61700227,161.28,161.27,1.3331]
[1730791516015,7.61700227,161.28,161.26,2.76]
[1730791516914,7.61700227,161.28,161.27,3.102]
[1730791517719,3.1008,161.34,161.28,3.1018]
[1730791517923,7.61700227,161.29,161.28,3.1018]
[1730791519121,7.61700227,161.29,161.26,2.76]
[1730791519323,7.61700227,161.27,161.23,2.76]
[1730791519522,7.61700227,161.25,161.23,2.76]
[1730791520116,7.61700227,161.24,161.22,1.3164]
[1730791520321,7.61700227,161.24,161.23,3.1026]
[1730791521028,7.61700227,161.24,161.21,75.48306468]
[1730791521318,7.61700227,161.24,161.14,6.20818702]
[1730791521319,7.61700227,161.22,161.19,2.76]
[1730791521523,7.61700227,161.2,161.19,2.76]
[1730791521914,7.61700227,161.2,161.19,5.8636]
[1730791522120,7.61700227,161.21,161.18,2.76]
[1730791523322,7.61700227,161.21,161.2,3.1034]
[1730791524522,2.76,161.27,161.19,7.61700227]
[1730791524818,7.61700227,161.23,161.19,7.61700227]
[1730791525220,7.61700227,161.22,161.21,3.1031]
[1730791526218,7.61700227,161.23,161.21,3.1031]
[1730791526921,2.6281,161.34,161.2,7.61700227]
[1730791527124,7.61700227,161.24,161.2,7.61700227]
[1730791527333,7.61700227,161.23,161.22,3.1029]
[1730791531931,7.61700227,161.23,161.21,3.1031]
[1730791532129,7.61700227,161.22,161.18,2.76]
[1730791532530,7.61700227,161.22,161.21,3.1032]
[1730791533436,7.61700227,161.23,161.21,3.1032]
[1730791534231,7.61700227,161.22,161.21,3.1032]
[1730791535430,7.61700227,161.22,161.16,6.7924]
[1730791535637,7.61700227,161.2,161.16,6.7924]
[1730791535839,7.61700227,161.2,161.18,3.1036]
[1730791536131,7.61700227,161.2,161.16,6.7924]
[1730791536330,7.61700227,161.2,161.16,5.446]
[1730791536532,7.61700227,161.2,161.16,2.686]
[1730791536729,7.61700227,161.2,161.16,5.446]
[1730791537138,7.61700227,161.2,161.18,3.1037]
[1730791539038,7.61700227,161.2,161.16,2.76]
[1730791539235,7.61700227,161.17,161.16,5.8641]
[1730791539634,7.61700227,161.17,161.15,75.51326235]
[1730791540129,7.61700227,161.17,161.13,10.37700227]
[1730791540334,7.61700227,161.16,161.15,3.1044]
[1730791540631,7.61700227,161.17,161.13,2.76]
[1730791540835,7.61700227,161.17,161.16,3.1042]
[1730791541234,7.61700227,161.17,161.11,10.29830227]
[1730791541235,7.61700227,161.17,161.12,2.76]
[1730791541430,7.61700227,161.17,161.16,3.1042]
[1730791541639,7.61700227,161.18,161.16,3.1042]
[1730791543539,7.61700227,161.18,161.13,7.61700227]
[1730791543837,2.76,161.24,161.15,7.61700227]
[1730791544142,7.61700227,161.21,161.16,2.76]
[1730791544340,7.61700227,161.21,161.17,3.1039]
[1730791544541,7.61700227,161.21,161.16,2.76]
[1730791544843,7.61700227,161.19,161.16,2.76]
[1730791545050,7.61700227,161.19,161.18,3.1038]
[1730791546539,7.61700227,161.19,161.17,3.1039]
[1730791546743,7.61700227,161.18,161.17,3.1039]
[1730791547446,7.61700227,161.19,161.18,3.1038]
[1730791550542,3.1029,161.23,161.18,3.1038]
[1730791550745,2.76,161.24,161.14,10.37700227]
[1730791550932,7.61700227,161.19,161.14,10.37700227]
[1730791551636,7.61700227,161.19,161.18,3.1038]
[1730791556941,7.61700227,161.19,161.17,3.1038]
[1730791557143,7.61700227,161.19,161.14,10.37700227]
[1730791557547,7.61700227,161.19,161.18,3.1038]
[1730791560550,7.61700227,161.19,161.17,3.1038]
[1730791560751,7.61700227,161.18,161.17,3.1038]
[1730791563053,7.61700227,161.18,161.12,1.3359]
[1730791563351,2.76,161.24,161.09,3.08077764]
[1730791563352,7.61700227,161.13,161.09,2.76]
[1730791563957,7.61700227,161.13,161.12,3.1049]
[1730791567154,7.61700227,161.14,161.13,3.1046]
[1730791569865,7.61700227,161.16,161.11,7.61700227]
[1730791570060,7.61700227,161.16,161.14,3.1045]
[1730791572274,7.61700227,161.15,161.14,3.1045]
[1730791575672,7.61700227,161.15,161.11,7.61700227]
[1730791575870,5.8636,161.19,161.07,7.61700227]
[1730791575871,7.61700227,161.12,161.07,7.61700227]
[1730791576071,2.76,161.19,161.08,2.76]
[1730791576072,7.61700227,161.11,161.08,2.76]
[1730791576279,7.61700227,161.11,161.1,3.1053]
[1730791576473,3.1042,161.16,161.1,3.1053]
[1730791576680,3.1042,161.16,161.08,2.76]
[1730791576681,7.61700227,161.12,161.08,2.76]
[1730791576874,1.3951,161.18,161.12,3.1048]
[1730791577178,4.1551,161.18,161.1,7.61700227]
[1730791577477,7.61700227,161.16,161.14,3.1045]
[1730791578477,7.61700227,161.16,161.13,3.1046]
[1730791578679,7.61700227,161.14,161.13,3.1046]
[1730791579078,7.61700227,161.14,161.09,7.61700227]
[1730791579281,7.61700227,161.14,161.12,3.1048]
[1730791579481,7.61700227,161.13,161.07,7.61700227]
[1730791579676,7.61700227,161.11,161.09,2.76]
[1730791579982,7.61700227,161.11,161.1,3.1052]
[1730791580176,7.61700227,161.11,161.09,2.76]
[1730791580373,7.61700227,161.11,161.1,3.1053]
[1730791580772,7.61700227,161.11,161.05,11.71710227]
[1730791580982,7.61700227,161.1,161.07,3.1057]
[1730791581171,7.61700227,161.08,161.05,2.6921]
[1730791581476,7.61700227,161.08,161.04,2.76]
[1730791581780,7.61700227,161.08,161.05,3.1062]
[1730791582482,7.61700227,161.06,161.03,5.8665]
[1730791582671,7.61700227,161.05,161.03,3.1065]
[1730791583373,1.3509,161.12,161.02,54.87446239]
[1730791583574,7.61700227,161.06,161.02,54.87446239]
[1730791583983,7.61700227,161.06,161.04,3.1063]
[1730791584287,7.61700227,161.06,161.03,7.61700227]
[1730791584583,1.3509,161.12,161.04,7.61700227]
[1730791584877,7.61700227,161.09,161.04,7.61700227]
[1730791585580,7.61700227,161.09,161.05,3.1062]
[1730791585784,7.61700227,161.09,161.02,54.87446239]
[1730791585979,2.76,161.14,161.05,7.61700227]
[1730791586282,7.61700227,161.11,161.08,3.1057]
[1730791586671,3.1041,161.17,161.11,3.1051]
[1730791586875,4.1105,161.18,161.08,7.61700227]
[1730791587083,7.61700227,161.12,161.02,52.11446239]
[1730791587282,7.61700227,161.11,161.07,7.61700227]
[1730791587483,7.61700227,161.11,161.07,10.37700227]
[1730791587886,7.61700227,161.12,161.07,10.37700227]
[1730791588183,7.61700227,161.14,161.09,7.61700227]
[1730791588489,7.2144,161.18,161.12,3.1049]
[1730791588680,7.61700227,161.14,161.09,7.61700227]
[1730791589081,7.61700227,161.1,161.03,2.6605]
[1730791589386,4.1105,161.18,161.03,2.6605]
[1730791589387,2.76,161.14,161.07,7.61700227]
[1730791589585,2.76,161.16,161.11,3.105]
[1730791589790,7.61700227,161.13,161.08,7.61700227]
[1730791590079,7.61700227,161.12,161.07,7.61700227]
[1730791590986,7.61700227,161.12,161.1,3.1052]
[1730791591182,7.61700227,161.13,161.1,3.1052]
[1730791591386,7.61700227,161.13,161.08,7.61700227]
[1730791591980,7.61700227,161.13,161.11,3.105]
[1730791592385,4.4543,161.18,161.1,7.61700227]
[1730791592386,7.61700227,161.14,161.1,7.61700227]
[1730791592583,1.299,161.19,161.12,7.61700227]
[1730791592584,7.61700227,161.16,161.12,7.61700227]
[1730791593087,7.61700227,161.16,161.14,3.1044]
[1730791593890,7.61700227,161.16,161.15,3.1044]
[1730791594382,7.61700227,161.16,161.12,7.61700227]
[1730791594581,7.61700227,161.16,161.14,3.1045]
[1730791594982,7.61700227,161.16,161.12,7.61700227]
[1730791595189,7.61700227,161.13,161.11,5.8651]
[1730791595387,2.76,161.19,161.08,7.61700227]
[1730791595388,7.61700227,161.12,161.08,7.61700227]
[1730791595593,7.61700227,161.12,161.08,10.37700227]
[1730791596091,7.61700227,161.11,161.08,2.76]
[1730791598283,7.61700227,161.11,161.08,5.8656]
[1730791598992,7.61700227,161.11,161.08,3.1056]
[1730791601498,7.61700227,161.09,161.07,3.1058]
[1730791601687,7.61700227,161.09,161.05,2.88]
[1730791601893,7.61700227,161.08,161.05,2.88]
[1730791602390,7.61700227,161.08,160.98,1.3828]
[1730791602589,7.61700227,161.08,161.06,3.106]
[1730791603192,7.61700227,161.08,161.04,2.88]
[1730791603391,7.61700227,161.08,160.98,53.50748448]
[1730791603392,7.61700227,161.07,161.02,10.49700227]
[1730791604588,7.61700227,161.07,161.04,3.1063]
[1730791605886,7.61700227,161.05,161.02,2.88]
[1730791606793,7.61700227,161.05,161.03,3.1065]
[1730791606998,7.61700227,161.05,161.02,2.88]
[1730791606999,7.61700227,161.06,161.02,2.88]
[1730791607195,7.61700227,161.05,161.0,10.49700227]
[1730791607394,7.61700227,161.05,161.02,3.1067]
[1730791607892,3.1056,161.09,161.0,10.49700227]
[1730791608088,7.61700227,161.06,161.03,3.1066]
[1730791608899,7.61700227,161.06,161.04,3.1063]
[1730791609101,5.9854,161.1,161.02,7.61700227]
[1730791609102,7.61700227,161.07,161.02,7.61700227]
[1730791609605,7.61700227,161.07,161.05,3.1063]
[1730791610197,7.61700227,161.06,161.05,3.1063]
[1730791612297,7.61700227,161.07,161.05,3.1063]
[1730791616705,7.61700227,161.07,161.06,3.1061]
[1730791617509,1.3525,161.13,161.09,3.1053]
[1730791617699,7.61700227,161.11,161.06,7.61700227]
[1730791618103,7.61700227,161.11,161.08,3.1057]
[1730791619205,4.4573,161.13,161.08,3.1057]
[1730791619406,7.61700227,161.09,161.08,3.1057]
[1730791620007,7.61700227,161.09,161.07,3.1058]
[1730791620306,7.61700227,161.08,161.07,3.1058]
[1730791621911,7.61700227,161.11,161.09,3.1054]
[1730791623115,7.61700227,161.1,161.05,2.88]
[1730791623316,7.61700227,161.08,161.07,3.1058]
[1730791624116,7.61700227,161.08,161.05,3.1061]
[1730791624323,7.61700227,161.06,161.05,3.1061]
[1730791625313,7.61700227,161.06,161.04,3.1064]
[1730791630907,7.61700227,161.07,161.03,2.88]
[1730791631618,7.61700227,161.07,161.05,3.1062]
[1730791632712,7.61700227,161.08,161.03,2.88]
[1730791632916,7.61700227,161.09,161.07,3.1059]
[1730791633912,7.61700227,161.09,161.05,7.61700227]
[1730791634120,7.61700227,161.09,161.08,3.1057]
[1730791635423,7.61700227,161.11,161.05,10.38590227]
[1730791635628,7.61700227,161.11,161.1,3.1053]
[1730791636016,5.9442,161.16,161.1,3.1053]
[1730791636219,7.61700227,161.11,161.1,3.1053]
[1730791643029,1.3842,161.18,161.07,2.84]
[1730791643030,1.3842,161.18,161.08,7.61700227]
[1730791643221,1.3842,161.18,161.1,7.61700227]
[1730791643529,7.61700227,161.15,161.1,7.61700227]
[1730791643925,7.61700227,161.13,161.12,3.1048]
[1730791647432,7.61700227,161.13,161.07,3.1058]
[1730791647629,7.61700227,161.09,161.07,2.84]
[1730791648031,7.61700227,161.09,161.07,5.9457]
[1730791649434,7.61700227,161.09,161.07,3.1057]
[1730791650623,2.84,161.15,161.05,5.6089]
[1730791650830,7.61700227,161.1,161.08,3.1056]
[1730791653829,7.61700227,161.11,161.05,13.22590227]
[1730791654050,7.61700227,161.11,161.09,3.1054]
[1730791656633,7.61700227,161.11,161.05,13.22590227]
[1730791656835,7.61700227,161.11,161.1,3.1053]
[1730791657634,7.61700227,161.13,161.11,3.105]
[1730791657840,7.61700227,161.13,161.08,7.61700227]
[1730791658042,1.3486,161.19,161.1,7.61700227]
[1730791658043,7.61700227,161.15,161.1,7.61700227]
[1730791658343,7.61700227,161.15,161.1,10.41700227]
[1730791659943,7.61700227,161.15,161.13,3.1047]
[1730791664049,7.61700227,161.15,161.14,3.1045]
[1730791667749,2.8,161.19,161.12,7.61700227]
[1730791667942,7.61700227,161.17,161.12,7.61700227]
[1730791668136,7.61700227,161.16,161.15,3.1044]
[1730791669036,2.8,161.19,161.11,11.72670227]
[1730791669248,2.8,161.19,161.16,3.104]
[1730791669448,7.61700227,161.17,161.16,3.104]
[1730791673042,60.66801465,161.22,161.18,3.1036]
[1730791673248,7.61700227,161.19,161.18,3.1036]
[1730791677957,3.103,161.22,161.18,3.1036]
[1730791678159,7.61700227,161.2,161.18,3.1036]
[1730791682465,7.61700227,161.2,161.13,2.8]
[1730791682663,7.61700227,161.14,161.12,2.8]
[1730791682961,4.09,161.25,161.07,7.61700227]
[1730791682962,7.61700227,161.13,161.07,7.61700227]
[1730791683150,7.61700227,161.12,161.08,2.8]
[1730791683954,7.61700227,161.12,161.09,3.1055]
[1730791685869,7.61700227,161.1,161.07,3.1058]
[1730791686070,7.61700227,161.1,161.06,10.41700227]
[1730791686870,7.61700227,161.1,161.07,2.8]
[1730791687267,7.61700227,161.1,161.09,3.1055]
[1730791687872,7.61700227,161.11,161.09,3.1055]
[1730791692780,7.61700227,161.1,161.09,3.1055]
[1730791695482,7.61700227,161.1,161.06,2.8]
[1730791695690,7.61700227,161.07,161.02,2.8]
[1730791695989,7.61700227,161.08,161.03,7.61700227]
[1730791696480,7.61700227,161.08,161.05,3.1063]
[1730791697987,7.61700227,161.08,161.06,3.1061]
[1730791698187,7.61700227,161.08,161.03,8.91530227]
[1730791698386,7.61700227,161.09,161.04,7.61700227]
[1730791698591,7.61700227,161.09,161.05,3.1062]
[1730791698792,7.61700227,161.09,161.03,1.2983]
[1730791698793,7.61700227,161.12,161.07,7.61700227]
[1730791699293,60.20902593,161.18,161.09,7.61700227]
[1730791699486,7.61700227,161.15,161.09,7.61700227]
[1730791699794,7.61700227,161.15,161.11,7.61700227]
[1730791699979,7.61700227,161.15,161.12,3.1049]
[1730791700490,7.61700227,161.15,161.11,7.61700227]
[1730791700689,7.61700227,161.15,161.12,3.1048]
[1730791701392,7.61700227,161.13,161.1,2.8]
[1730791701893,7.61700227,161.13,161.11,3.105]
[1730791704988,7.61700227,161.13,161.1,2.8]
[1730791705488,7.61700227,161.13,161.09,3.1054]
[1730791706389,7.61700227,161.12,161.08,3.1057]
[1730791707295,7.61700227,161.1,161.06,10.41700227]
[1730791707688,7.61700227,161.1,161.07,3.1058]
[1730791712191,7.61700227,161.09,161.06,3.1061]
[1730791712599,7.61700227,161.07,161.01,2.8]
[1730791712895,7.61700227,161.06,161.03,3.1065]
[1730791716899,7.61700227,161.06,161.04,3.1065]
[1730791724504,7.61700227,161.06,161.03,3.1067]
[1730791725106,7.61700227,161.06,161.02,7.61700227]
[1730791725407,7.61700227,161.06,161.04,3.1063]
[1730791727513,7.61700227,161.06,161.03,3.1065]
[1730791728710,2.8,161.1,161.01,2.8]
[1730791728711,7.61700227,161.04,161.01,2.8]
[1730791729014,7.61700227,161.04,161.02,3.1067]
[1730791731615,7.61700227,161.04,161.01,2.8]
[1730791731813,3.1062,161.06,161.01,5.907]
[1730791732014,7.61700227,161.04,161.01,5.907]